[Event "*** Titled Tuesday Blitz"]
[Site "Chess.com"]
[Date "2021.03.16"]
[Round "5"]
[White "olksuna"]
[Black "WiktoriaPOL"]
[Result "1-0"]
[WhiteElo "2659"]
[BlackElo "2121"]
[TimeControl "180+1"]
[EndTime "10:54:07 PDT"]
[Termination "olksuna won by checkmate"]

1. e4 {[%clk 0:03:00.9]} 1... c5 {[%clk 0:02:59.2]} 2. Nf3 {[%clk 0:03:00.9]}
2... d6 {[%clk 0:02:59.3]} 3. d4 {[%clk 0:03:01.3]} 3... cxd4 {[%clk 0:02:59.5]}
4. Nxd4 {[%clk 0:03:02.2]} 4... Nf6 {[%clk 0:02:59.8]} 5. Nc3 {[%clk 0:03:02.9]}
5... a6 {[%clk 0:02:59.5]} 6. Be2 {[%clk 0:03:03.3]} 6... e5 {[%clk 0:02:59.4]}
7. Nf3 {[%clk 0:03:02.8]} 7... Be7 {[%clk 0:02:59]} 8. Bg5 {[%clk 0:03:02.9]}
8... O-O {[%clk 0:02:58.4]} 9. Bxf6 {[%clk 0:03:02.5]} 9... Bxf6 {[%clk
0:02:58.1]} 10. O-O {[%clk 0:03:03.1]} 10... b5 {[%clk 0:02:55.9]} 11. a4 {[%clk
0:03:00.9]} 11... b4 {[%clk 0:02:55.5]} 12. Nd5 {[%clk 0:03:01.6]} 12... a5
{[%clk 0:02:51.6]} 13. Bb5 {[%clk 0:02:59.2]} 13... Bb7 {[%clk 0:02:47.9]} 14.
Qd2 {[%clk 0:02:51]} 14... Ba6 {[%clk 0:02:17.4]} 15. Rfd1 {[%clk 0:02:48.1]}
15... Bxb5 {[%clk 0:01:47.4]} 16. axb5 {[%clk 0:02:49]} 16... Ra7 {[%clk
0:01:22.5]} 17. Nxf6+ {[%clk 0:02:41.2]} 17... gxf6 {[%clk 0:01:21.6]} 18. Qxd6
{[%clk 0:02:39.5]} 18... Rd7 {[%clk 0:01:19.6]} 19. Qxd7 {[%clk 0:02:29.5]}
19... Nxd7 {[%clk 0:01:18.6]} 20. Nh4 {[%clk 0:02:25.7]} 20... Qc7 {[%clk
0:01:12.1]} 21. Nf5 {[%clk 0:02:24.4]} 21... Nc5 {[%clk 0:01:05.7]} 22. f3
{[%clk 0:02:12.1]} 22... Qb6 {[%clk 0:00:55.1]} 23. Rd6 {[%clk 0:01:59.1]} 23...
Qxb5 {[%clk 0:00:54.2]} 24. Rd5 {[%clk 0:01:44.9]} 24... Qb6 {[%clk 0:00:51]}
25. Kh1 {[%clk 0:01:44]} 25... Rd8 {[%clk 0:00:47.7]} 26. Rad1 {[%clk
0:01:34.1]} 26... Rxd5 {[%clk 0:00:45.4]} 27. exd5 {[%clk 0:01:34.5]} 27... Nd7
{[%clk 0:00:40.7]} 28. d6 {[%clk 0:01:26.1]} 28... Qf2 {[%clk 0:00:38.8]} 29. h3
{[%clk 0:00:50.7]} 29... Qxc2 {[%clk 0:00:37.5]} 30. Ne7+ {[%clk 0:00:51]} 30...
Kf8 {[%clk 0:00:34.7]} 31. Rd5 {[%clk 0:00:51.3]} 31... Qxb2 {[%clk 0:00:25.5]}
32. Rxa5 {[%clk 0:00:51.1]} 32... Qc1+ {[%clk 0:00:23.6]} 33. Kh2 {[%clk
0:00:50]} 33... Qf4+ {[%clk 0:00:23.3]} 34. Kh1 {[%clk 0:00:50.1]} 34... Kg7
{[%clk 0:00:22.8]} 35. Rb5 {[%clk 0:00:45.8]} 35... Qc4 {[%clk 0:00:18.5]} 36.
Rb7 {[%clk 0:00:42.3]} 36... Nc5 {[%clk 0:00:16.3]} 37. Rb8 {[%clk 0:00:38.3]}
37... b3 {[%clk 0:00:16.2]} 38. Rg8+ {[%clk 0:00:36.5]} 38... Kh6 {[%clk
0:00:15.5]} 39. Nf5+ {[%clk 0:00:37.1]} 39... Kh5 {[%clk 0:00:15.6]} 40. g4+
{[%clk 0:00:37.8]} 40... Qxg4 {[%clk 0:00:14]} 41. hxg4# {[%clk 0:00:37.6]} 1-0

[Event "*** Titled Tuesday Blitz"]
[Site "Chess.com"]
[Date "2021.03.16"]
[Round "5"]
[White "Sychev_Klementy"]
[Black "Alexander_Moskalenko"]
[Result "0-1"]
[WhiteElo "2873"]
[BlackElo "2777"]
[TimeControl "180+1"]
[EndTime "10:54:10 PDT"]
[Termination "Alexander_Moskalenko won on time"]

1. e4 {[%clk 0:03:00.9]} 1... e6 {[%clk 0:02:59.6]} 2. d4 {[%clk 0:02:57]} 2...
d5 {[%clk 0:03:00.5]} 3. Nc3 {[%clk 0:02:57.2]} 3... Nf6 {[%clk 0:02:59.8]} 4.
e5 {[%clk 0:02:51.9]} 4... Nfd7 {[%clk 0:02:59.2]} 5. f4 {[%clk 0:02:52.5]} 5...
c5 {[%clk 0:02:59.4]} 6. Nf3 {[%clk 0:02:53.1]} 6... Nc6 {[%clk 0:02:59.8]} 7.
Be3 {[%clk 0:02:53.7]} 7... Qb6 {[%clk 0:03:00.3]} 8. Na4 {[%clk 0:02:52.4]}
8... Qc7 {[%clk 0:02:58.3]} 9. Nxc5 {[%clk 0:02:46.6]} 9... Nxd4 {[%clk
0:02:57.4]} 10. Nxd4 {[%clk 0:02:45.8]} 10... Nxc5 {[%clk 0:02:56.7]} 11. Be2
{[%clk 0:02:44.9]} 11... Bd7 {[%clk 0:02:57.1]} 12. O-O {[%clk 0:02:44.6]} 12...
Be7 {[%clk 0:02:57.5]} 13. Rc1 {[%clk 0:02:40.7]} 13... O-O {[%clk 0:02:53.5]}
14. c4 {[%clk 0:02:40]} 14... dxc4 {[%clk 0:02:53.2]} 15. Rxc4 {[%clk
0:02:39.3]} 15... b5 {[%clk 0:02:45.3]} 16. Rc2 {[%clk 0:02:23.5]} 16... b4
{[%clk 0:02:19.8]} 17. Nb3 {[%clk 0:01:51.9]} 17... Ba4 {[%clk 0:02:19.5]} 18.
Nxc5 {[%clk 0:01:47.2]} 18... Bxc5 {[%clk 0:02:15.6]} 19. Bxc5 {[%clk
0:01:32.5]} 19... Rfd8 {[%clk 0:02:12]} 20. b3 {[%clk 0:00:31.9]} 20... Rxd1
{[%clk 0:02:10.2]} 21. Rxd1 {[%clk 0:00:32.8]} 21... Be8 {[%clk 0:02:04.1]} 22.
Rdd2 {[%clk 0:00:23.7]} 22... Rc8 {[%clk 0:01:59.7]} 23. Ba6 {[%clk 0:00:20.7]}
23... Qxc5+ {[%clk 0:01:50.7]} 24. Rxc5 {[%clk 0:00:20.2]} 24... Rxc5 {[%clk
0:01:51.6]} 25. Rd8 {[%clk 0:00:20.2]} 25... Kf8 {[%clk 0:01:52.2]} 26. Ra8
{[%clk 0:00:20.6]} 26... Ra5 {[%clk 0:01:47.8]} 27. Bc4 {[%clk 0:00:08.6]} 27...
Ke7 {[%clk 0:01:42.7]} 28. Rb8 {[%clk 0:00:08.7]} 28... Bc6 {[%clk 0:01:35.8]}
29. Bf1 {[%clk 0:00:08]} 29... Rxa2 {[%clk 0:01:31.2]} 30. Rxb4 {[%clk
0:00:08.2]} 30... Rb2 {[%clk 0:01:30.8]} 31. g3 {[%clk 0:00:05.7]} 31... a5
{[%clk 0:01:24.6]} 32. Rb6 {[%clk 0:00:03.6]} 32... Bd5 {[%clk 0:01:23.2]} 33.
Ra6 {[%clk 0:00:03.9]} 33... Ra2 {[%clk 0:01:13]} 34. Bc4 {[%clk 0:00:02.9]}
34... Be4 {[%clk 0:00:48.3]} 35. Ra7+ {[%clk 0:00:02.6]} 35... Kf8 {[%clk
0:00:48.5]} 36. Bb5 {[%clk 0:00:01.1]} 36... g6 {[%clk 0:00:42.1]} 0-1

[Event "*** Titled Tuesday Blitz"]
[Site "Chess.com"]
[Date "2021.03.16"]
[Round "5"]
[White "dretch"]
[Black "I_Enchev"]
[Result "0-1"]
[WhiteElo "2826"]
[BlackElo "2560"]
[TimeControl "180+1"]
[EndTime "10:54:12 PDT"]
[Termination "I_Enchev won on time"]

1. d4 {[%clk 0:03:00.9]} 1... Nf6 {[%clk 0:02:59.4]} 2. c4 {[%clk 0:03:01.1]}
2... e6 {[%clk 0:02:59.4]} 3. Nc3 {[%clk 0:03:01.5]} 3... Bb4 {[%clk 0:02:59.2]}
4. Qc2 {[%clk 0:03:01.7]} 4... O-O {[%clk 0:02:54.8]} 5. e4 {[%clk 0:03:01.4]}
5... d5 {[%clk 0:02:53.5]} 6. e5 {[%clk 0:03:01.5]} 6... Ne4 {[%clk 0:02:52]} 7.
Bd3 {[%clk 0:03:01.9]} 7... Bxc3+ {[%clk 0:02:47.6]} 8. bxc3 {[%clk 0:03:01.5]}
8... c5 {[%clk 0:02:45.3]} 9. Ne2 {[%clk 0:02:53.6]} 9... cxd4 {[%clk
0:02:41.1]} 10. f3 {[%clk 0:02:31.4]} 10... dxc4 {[%clk 0:02:27.8]} 11. Bxe4
{[%clk 0:02:21.2]} 11... d3 {[%clk 0:02:27.7]} 12. Qb1 {[%clk 0:02:19]} 12...
dxe2 {[%clk 0:02:27.2]} 13. Bxh7+ {[%clk 0:02:18.5]} 13... Kh8 {[%clk
0:02:26.9]} 14. Bc2 {[%clk 0:02:19]} 14... Qa5 {[%clk 0:02:19.5]} 15. Kf2 {[%clk
0:01:37.9]} 15... Nc6 {[%clk 0:02:12.8]} 16. Re1 {[%clk 0:01:34.4]} 16... Nxe5
{[%clk 0:02:06.9]} 17. Rxe2 {[%clk 0:01:30.7]} 17... Rd8 {[%clk 0:01:59.8]} 18.
Kg1 {[%clk 0:00:57.2]} 18... Nd3 {[%clk 0:01:55]} 19. Bd2 {[%clk 0:00:52.5]}
19... b6 {[%clk 0:01:44.5]} 20. Re4 {[%clk 0:00:49.3]} 20... Bb7 {[%clk
0:01:31.9]} 21. Rxc4 {[%clk 0:00:36.4]} 21... Ba6 {[%clk 0:01:21.1]} 22. Rh4+
{[%clk 0:00:31.4]} 22... Kg8 {[%clk 0:01:20.6]} 23. Bxd3 {[%clk 0:00:05.8]}
23... Rxd3 {[%clk 0:01:19.1]} 24. Qe1 {[%clk 0:00:04.6]} 24... Rad8 {[%clk
0:01:13.2]} 25. Rd4 {[%clk 0:00:04.6]} 25... Qc5 {[%clk 0:01:09.6]} 26. Be3
{[%clk 0:00:04.3]} 26... Qc7 {[%clk 0:00:50.2]} 27. Rc1 {[%clk 0:00:03.5]} 27...
e5 {[%clk 0:00:45.8]} 28. Rg4 {[%clk 0:00:03.5]} 28... f5 {[%clk 0:00:40.1]} 29.
Rg5 {[%clk 0:00:02.6]} 29... Qd7 {[%clk 0:00:38.2]} 30. Bf2 {[%clk 0:00:02.1]}
30... Qe6 {[%clk 0:00:33.9]} 31. h4 {[%clk 0:00:02.2]} 31... R8d5 {[%clk
0:00:24.5]} 32. c4 {[%clk 0:00:01.8]} 32... Bxc4 {[%clk 0:00:22.2]} 0-1

[Event "*** Titled Tuesday Blitz"]
[Site "Chess.com"]
[Date "2021.03.16"]
[Round "5"]
[White "MatyChess1"]
[Black "ErikRonka"]
[Result "1-0"]
[WhiteElo "2612"]
[BlackElo "2431"]
[TimeControl "180+1"]
[EndTime "10:54:12 PDT"]
[Termination "MatyChess1 won by resignation"]

1. e4 {[%clk 0:02:05.9]} 1... c6 {[%clk 0:02:59.4]} 2. Nf3 {[%clk 0:02:06.1]}
2... d5 {[%clk 0:03:00.3]} 3. Nc3 {[%clk 0:02:07]} 3... dxe4 {[%clk 0:03:00]} 4.
Nxe4 {[%clk 0:02:07.9]} 4... Nd7 {[%clk 0:03:00.1]} 5. Bc4 {[%clk 0:02:06.4]}
5... Ngf6 {[%clk 0:02:59.8]} 6. Qe2 {[%clk 0:02:06.9]} 6... Nxe4 {[%clk
0:02:59]} 7. Qxe4 {[%clk 0:02:07.8]} 7... Nf6 {[%clk 0:02:59.3]} 8. Ne5 {[%clk
0:02:08.5]} 8... e6 {[%clk 0:02:59.8]} 9. Qe2 {[%clk 0:02:09]} 9... b5 {[%clk
0:03:00.3]} 10. Bd3 {[%clk 0:02:07.4]} 10... Qc7 {[%clk 0:02:57.4]} 11. b3
{[%clk 0:02:07.4]} 11... Be7 {[%clk 0:02:40.7]} 12. Bb2 {[%clk 0:02:07.5]} 12...
O-O {[%clk 0:02:40.3]} 13. O-O {[%clk 0:02:08.1]} 13... Bb7 {[%clk 0:02:38.3]}
14. f4 {[%clk 0:02:08.6]} 14... a6 {[%clk 0:02:07.1]} 15. a4 {[%clk 0:02:07.1]}
15... Rad8 {[%clk 0:02:00]} 16. Rf3 {[%clk 0:02:04]} 16... Bc5+ {[%clk 0:01:56]}
17. Kh1 {[%clk 0:02:02.4]} 17... Bd4 {[%clk 0:01:56.5]} 18. c3 {[%clk
0:01:39.9]} 18... Bb6 {[%clk 0:01:51.4]} 19. Rh3 {[%clk 0:01:30.9]} 19... g6
{[%clk 0:01:38.5]} 20. b4 {[%clk 0:01:26.2]} 20... Nd5 {[%clk 0:01:31.5]} 21.
Rf1 {[%clk 0:01:26.1]} 21... Ba7 {[%clk 0:01:19.6]} 22. c4 {[%clk 0:01:01.5]}
22... Nf6 {[%clk 0:00:40.3]} 23. c5 {[%clk 0:00:39.2]} 23... h5 {[%clk 0:00:15]}
24. a5 {[%clk 0:00:17.8]} 24... Bb8 {[%clk 0:00:11.7]} 25. Bc2 {[%clk
0:00:16.8]} 25... Nd7 {[%clk 0:00:07.2]} 26. Ng4 {[%clk 0:00:10]} 26... Kh7
{[%clk 0:00:04]} 27. Rxh5+ {[%clk 0:00:09.9]} 1-0

[Event "*** Titled Tuesday Blitz"]
[Site "Chess.com"]
[Date "2021.03.16"]
[Round "5"]
[White "FairChess_on_YouTube"]
[Black "youngKID"]
[Result "1-0"]
[WhiteElo "2979"]
[BlackElo "2787"]
[TimeControl "180+1"]
[EndTime "10:54:13 PDT"]
[Termination "FairChess_on_YouTube won on time"]

1. e4 {[%clk 0:03:00.9]} 1... e5 {[%clk 0:02:57.9]} 2. Nf3 {[%clk 0:03:00.2]}
2... Nc6 {[%clk 0:02:57.9]} 3. Nc3 {[%clk 0:02:59.9]} 3... Nf6 {[%clk 0:02:57]}
4. Bb5 {[%clk 0:02:59.9]} 4... Bb4 {[%clk 0:02:55.1]} 5. O-O {[%clk 0:02:58.4]}
5... O-O {[%clk 0:02:54.1]} 6. d3 {[%clk 0:02:58.7]} 6... Bxc3 {[%clk
0:02:52.6]} 7. bxc3 {[%clk 0:02:58.6]} 7... d6 {[%clk 0:02:52]} 8. Nd2 {[%clk
0:02:56.8]} 8... Bd7 {[%clk 0:02:43.9]} 9. c4 {[%clk 0:02:51.2]} 9... a6 {[%clk
0:02:40.5]} 10. Bxc6 {[%clk 0:02:51.2]} 10... Bxc6 {[%clk 0:02:37.9]} 11. f4
{[%clk 0:02:47.3]} 11... b5 {[%clk 0:02:32.5]} 12. Bb2 {[%clk 0:02:35.1]} 12...
Re8 {[%clk 0:01:59.3]} 13. Qf3 {[%clk 0:02:33.7]} 13... Rb8 {[%clk 0:01:57.2]}
14. Bc3 {[%clk 0:02:32.1]} 14... Qe7 {[%clk 0:01:28.3]} 15. Kh1 {[%clk
0:02:11.7]} 15... Nd7 {[%clk 0:01:25.9]} 16. Qh5 {[%clk 0:02:08.8]} 16... f6
{[%clk 0:01:19.9]} 17. Rf3 {[%clk 0:02:08]} 17... Nf8 {[%clk 0:01:16.2]} 18.
Raf1 {[%clk 0:02:01.6]} 18... bxc4 {[%clk 0:01:12.6]} 19. Nxc4 {[%clk
0:01:59.7]} 19... exf4 {[%clk 0:01:12.8]} 20. Rxf4 {[%clk 0:01:48.7]} 20... Rb5
{[%clk 0:01:12.7]} 21. Qh3 {[%clk 0:01:32.5]} 21... Ng6 {[%clk 0:00:57.6]} 22.
R4f2 {[%clk 0:01:29.2]} 22... d5 {[%clk 0:00:57.8]} 23. Ne3 {[%clk 0:01:19]}
23... Bd7 {[%clk 0:00:42.3]} 24. Nf5 {[%clk 0:00:53.1]} 24... Qf7 {[%clk
0:00:33.3]} 25. Qg3 {[%clk 0:00:36.2]} 25... dxe4 {[%clk 0:00:31.2]} 26. dxe4
{[%clk 0:00:35.5]} 26... Rxe4 {[%clk 0:00:27]} 27. Nxg7 {[%clk 0:00:24.9]} 27...
Qxg7 {[%clk 0:00:12.6]} 28. Bxf6 {[%clk 0:00:25.4]} 28... Qh6 {[%clk 0:00:02.6]}
29. Qxc7 {[%clk 0:00:24.9]} 29... Re8 {[%clk 0:00:01.2]} 30. Qxd7 {[%clk
0:00:23.7]} 1-0

[Event "*** Titled Tuesday Blitz"]
[Site "Chess.com"]
[Date "2021.03.16"]
[Round "5"]
[White "FMalexhdez"]
[Black "Kurkusha"]
[Result "0-1"]
[WhiteElo "2191"]
[BlackElo "2345"]
[TimeControl "180+1"]
[EndTime "10:54:16 PDT"]
[Termination "Kurkusha won by resignation"]

1. e4 {[%clk 0:03:00.9]} 1... e5 {[%clk 0:02:58.7]} 2. Nf3 {[%clk 0:02:58.8]}
2... Nc6 {[%clk 0:02:58.4]} 3. Bc4 {[%clk 0:02:59.2]} 3... Bc5 {[%clk 0:02:58]}
4. c3 {[%clk 0:02:57.8]} 4... Nf6 {[%clk 0:02:57.7]} 5. d3 {[%clk 0:02:57.1]}
5... O-O {[%clk 0:02:55]} 6. Nbd2 {[%clk 0:02:54.6]} 6... Bb6 {[%clk 0:02:48.3]}
7. O-O {[%clk 0:02:53.2]} 7... d6 {[%clk 0:02:48.2]} 8. Bb3 {[%clk 0:02:51.1]}
8... Ne7 {[%clk 0:02:48.7]} 9. Nc4 {[%clk 0:02:49]} 9... Ng6 {[%clk 0:02:48.4]}
10. Nxb6 {[%clk 0:02:44.2]} 10... axb6 {[%clk 0:02:47.6]} 11. Re1 {[%clk
0:02:42.6]} 11... Be6 {[%clk 0:02:41.3]} 12. d4 {[%clk 0:02:23.2]} 12... Qe7
{[%clk 0:02:26.5]} 13. d5 {[%clk 0:02:00.9]} 13... Bd7 {[%clk 0:02:25.3]} 14.
Bc2 {[%clk 0:01:56]} 14... Nh5 {[%clk 0:02:19.8]} 15. c4 {[%clk 0:01:43.1]}
15... Nhf4 {[%clk 0:02:14.2]} 16. g3 {[%clk 0:01:37.7]} 16... Nh5 {[%clk
0:02:05.7]} 17. Bg5 {[%clk 0:01:26.9]} 17... f6 {[%clk 0:01:59.8]} 18. Be3
{[%clk 0:01:26.7]} 18... Bg4 {[%clk 0:01:56.8]} 19. Kg2 {[%clk 0:01:22]} 19...
Qd7 {[%clk 0:01:55.3]} 20. Bd3 {[%clk 0:01:20.6]} 20... f5 {[%clk 0:01:50.4]}
21. exf5 {[%clk 0:01:17]} 21... Bxf5 {[%clk 0:01:43.2]} 22. Ng5 {[%clk
0:01:04.7]} 22... Bxd3 {[%clk 0:01:25.5]} 23. Qxh5 {[%clk 0:00:56.8]} 23... h6
{[%clk 0:01:13.2]} 24. Ne6 {[%clk 0:00:54.5]} 24... Rf6 {[%clk 0:01:12.9]} 25.
f3 {[%clk 0:00:41.5]} 25... Bxc4 {[%clk 0:01:10]} 26. Rac1 {[%clk 0:00:37.4]}
26... b5 {[%clk 0:01:06.3]} 27. Red1 {[%clk 0:00:22.6]} 27... Rxa2 {[%clk
0:01:02.1]} 28. Rd2 {[%clk 0:00:19.3]} 28... Bxd5 {[%clk 0:00:57.8]} 29. Rxd5
{[%clk 0:00:14.7]} 29... Rxb2+ {[%clk 0:00:51.8]} 30. Rd2 {[%clk 0:00:14.2]}
30... Rxd2+ {[%clk 0:00:51.4]} 31. Bxd2 {[%clk 0:00:14.5]} 31... Rxe6 {[%clk
0:00:51.7]} 32. Qf5 {[%clk 0:00:12.7]} 32... c6 {[%clk 0:00:46]} 33. h4 {[%clk
0:00:12.2]} 33... Qf7 {[%clk 0:00:44.4]} 34. Qe4 {[%clk 0:00:11.8]} 34... d5
{[%clk 0:00:43.5]} 35. Qe3 {[%clk 0:00:11.3]} 35... e4 {[%clk 0:00:41]} 36. f4
{[%clk 0:00:11.1]} 36... Ne7 {[%clk 0:00:40.3]} 37. Bc3 {[%clk 0:00:11.2]} 37...
Nf5 {[%clk 0:00:39.8]} 38. Qb6 {[%clk 0:00:09.2]} 38... Qg6 {[%clk 0:00:39.6]}
39. Be1 {[%clk 0:00:08.4]} 39... Nxh4+ {[%clk 0:00:36.8]} 40. Kf2 {[%clk
0:00:08.7]} 40... e3+ {[%clk 0:00:35.8]} 0-1

[Event "*** Titled Tuesday Blitz"]
[Site "Chess.com"]
[Date "2021.03.16"]
[Round "5"]
[White "cukin84"]
[Black "whogeeyao"]
[Result "1-0"]
[WhiteElo "2125"]
[BlackElo "2336"]
[TimeControl "180+1"]
[EndTime "10:54:17 PDT"]
[Termination "cukin84 won by resignation"]

1. e4 {[%clk 0:03:00.9]} 1... c5 {[%clk 0:03:00.3]} 2. Nc3 {[%clk 0:03:00.2]}
2... e6 {[%clk 0:03:01.2]} 3. f4 {[%clk 0:02:59.8]} 3... Nc6 {[%clk 0:03:02.1]}
4. Nf3 {[%clk 0:03:00]} 4... Qc7 {[%clk 0:03:02.8]} 5. d3 {[%clk 0:02:58.9]}
5... a6 {[%clk 0:03:03]} 6. g3 {[%clk 0:02:59.2]} 6... Nf6 {[%clk 0:03:02.4]} 7.
Bg2 {[%clk 0:02:59.2]} 7... b5 {[%clk 0:03:02.6]} 8. O-O {[%clk 0:02:59.4]} 8...
Bb7 {[%clk 0:03:03.3]} 9. h3 {[%clk 0:02:57.6]} 9... Be7 {[%clk 0:03:03.5]} 10.
g4 {[%clk 0:02:56.7]} 10... h6 {[%clk 0:03:01.9]} 11. Qe1 {[%clk 0:02:55.6]}
11... d6 {[%clk 0:02:59]} 12. Ne2 {[%clk 0:02:49.1]} 12... Nb4 {[%clk
0:02:57.8]} 13. Qd2 {[%clk 0:02:43]} 13... Nd7 {[%clk 0:02:53.2]} 14. c3 {[%clk
0:02:41.7]} 14... Nc6 {[%clk 0:02:53.2]} 15. f5 {[%clk 0:02:41.7]} 15... Nce5
{[%clk 0:02:49]} 16. Nf4 {[%clk 0:02:33.4]} 16... exf5 {[%clk 0:02:43.5]} 17.
gxf5 {[%clk 0:02:30.3]} 17... Nxf3+ {[%clk 0:02:41.5]} 18. Bxf3 {[%clk
0:02:28.7]} 18... Ne5 {[%clk 0:02:34.9]} 19. Bh5 {[%clk 0:02:25.7]} 19... Bg5
{[%clk 0:01:33.2]} 20. Qg2 {[%clk 0:02:21.2]} 20... Bxf4 {[%clk 0:01:15]} 21.
Bxf4 {[%clk 0:02:20.2]} 21... Nxd3 {[%clk 0:01:15.7]} 22. Bh2 {[%clk 0:02:16.1]}
22... O-O-O {[%clk 0:01:11]} 23. Rad1 {[%clk 0:02:15]} 23... Ne5 {[%clk
0:01:09.1]} 24. a4 {[%clk 0:02:08.9]} 24... Qc6 {[%clk 0:01:00.9]} 25. axb5
{[%clk 0:02:07.8]} 25... axb5 {[%clk 0:00:59.4]} 26. Rd5 {[%clk 0:02:02.6]}
26... f6 {[%clk 0:00:54.4]} 27. Ra1 {[%clk 0:01:57]} 27... Rd7 {[%clk
0:00:38.4]} 28. Be2 {[%clk 0:01:35.6]} 28... Qb6 {[%clk 0:00:37.6]} 29. Bg3
{[%clk 0:01:24.4]} 29... Bxd5 {[%clk 0:00:36.3]} 30. exd5 {[%clk 0:01:24]} 30...
Kc7 {[%clk 0:00:36.2]} 31. b4 {[%clk 0:01:19.8]} 31... cxb4+ {[%clk 0:00:35.4]}
32. Bf2 {[%clk 0:01:19.3]} 32... Qb8 {[%clk 0:00:27.8]} 33. cxb4 {[%clk
0:01:18.6]} 33... Nc4 {[%clk 0:00:25.6]} 34. Ra7+ {[%clk 0:01:12.4]} 34... Qxa7
{[%clk 0:00:16.3]} 35. Bxa7 {[%clk 0:01:11]} 35... Ra8 {[%clk 0:00:16]} 36. Bxc4
{[%clk 0:01:02.8]} 36... bxc4 {[%clk 0:00:15.4]} 37. Bd4 {[%clk 0:00:59.4]}
37... Re7 {[%clk 0:00:14.9]} 38. Qf1 {[%clk 0:00:50.4]} 38... Kd7 {[%clk
0:00:10.5]} 39. Qxc4 {[%clk 0:00:47.9]} 39... Rc8 {[%clk 0:00:08.3]} 40. Qb5+
{[%clk 0:00:46]} 40... Kd8 {[%clk 0:00:08]} 41. Bb6+ {[%clk 0:00:45.1]} 1-0

[Event "*** Titled Tuesday Blitz"]
[Site "Chess.com"]
[Date "2021.03.16"]
[Round "5"]
[White "Shuvalov"]
[Black "Nemsko"]
[Result "1-0"]
[WhiteElo "2482"]
[BlackElo "2309"]
[TimeControl "180+1"]
[EndTime "10:54:22 PDT"]
[Termination "Shuvalov won by resignation"]

1. Nf3 {[%clk 0:03:00.9]} 1... d5 {[%clk 0:02:58.6]} 2. c4 {[%clk 0:02:51.5]}
2... d4 {[%clk 0:02:58.5]} 3. b4 {[%clk 0:02:51.1]} 3... e6 {[%clk 0:02:57.7]}
4. Bb2 {[%clk 0:02:50.3]} 4... c5 {[%clk 0:02:57.3]} 5. a3 {[%clk 0:02:43.6]}
5... Nf6 {[%clk 0:02:54.2]} 6. g3 {[%clk 0:02:40.8]} 6... Be7 {[%clk 0:02:53.2]}
7. Bg2 {[%clk 0:02:41]} 7... O-O {[%clk 0:02:49.2]} 8. O-O {[%clk 0:02:40.9]}
8... Nc6 {[%clk 0:02:47]} 9. b5 {[%clk 0:02:40.4]} 9... Nb8 {[%clk 0:02:43.1]}
10. e3 {[%clk 0:02:39.2]} 10... d3 {[%clk 0:02:32]} 11. Qb3 {[%clk 0:02:31]}
11... Qd6 {[%clk 0:02:09]} 12. Ne5 {[%clk 0:02:11.5]} 12... Rd8 {[%clk
0:02:07.8]} 13. a4 {[%clk 0:02:09.6]} 13... Ne8 {[%clk 0:01:57.1]} 14. Ra3
{[%clk 0:02:04.8]} 14... Bf6 {[%clk 0:01:56.2]} 15. Nxd3 {[%clk 0:01:57.5]}
15... Nd7 {[%clk 0:01:45.7]} 16. Nf4 {[%clk 0:01:51.5]} 16... Ne5 {[%clk
0:01:39.8]} 17. d4 {[%clk 0:01:41.3]} 17... cxd4 {[%clk 0:01:37.4]} 18. Bxd4
{[%clk 0:01:33.5]} 18... Qc7 {[%clk 0:01:24.4]} 19. Rc1 {[%clk 0:01:22.8]} 19...
Be7 {[%clk 0:01:18.5]} 20. Ra2 {[%clk 0:01:18.6]} 20... Ng6 {[%clk 0:01:00.7]}
21. Nxg6 {[%clk 0:01:10.1]} 21... hxg6 {[%clk 0:01:01.6]} 22. c5 {[%clk
0:00:58.8]} 22... Rb8 {[%clk 0:00:53.7]} 23. Rac2 {[%clk 0:00:54.6]} 23... e5
{[%clk 0:00:48.2]} 24. Bb2 {[%clk 0:00:51.7]} 24... Be6 {[%clk 0:00:46.7]} 25.
Qc3 {[%clk 0:00:48.8]} 25... f6 {[%clk 0:00:43.1]} 26. c6 {[%clk 0:00:41.1]}
26... b6 {[%clk 0:00:39.3]} 27. Ba3 {[%clk 0:00:40.8]} 27... Nd6 {[%clk
0:00:37.3]} 28. Nd2 {[%clk 0:00:38.4]} 28... Kf7 {[%clk 0:00:27.6]} 29. Bf1
{[%clk 0:00:30.1]} 29... Rh8 {[%clk 0:00:18.8]} 30. Bxd6 {[%clk 0:00:25.6]}
30... Bxd6 {[%clk 0:00:18.9]} 31. Bc4 {[%clk 0:00:25.6]} 31... Rbc8 {[%clk
0:00:17.1]} 32. Ne4 {[%clk 0:00:20.5]} 32... Bxc4 {[%clk 0:00:07.3]} 33. Qxc4+
{[%clk 0:00:20.1]} 33... Ke7 {[%clk 0:00:08.2]} 34. Rd1 {[%clk 0:00:18.8]} 34...
Rcd8 {[%clk 0:00:07.8]} 35. Rcd2 {[%clk 0:00:18.7]} 35... Ba3 {[%clk 0:00:05.1]}
36. Rd7+ {[%clk 0:00:18.4]} 1-0

[Event "*** Titled Tuesday Blitz"]
[Site "Chess.com"]
[Date "2021.03.16"]
[Round "5"]
[White "crazy_but_lazy"]
[Black "chesslh19"]
[Result "1-0"]
[WhiteElo "2462"]
[BlackElo "2250"]
[TimeControl "180+1"]
[EndTime "10:54:22 PDT"]
[Termination "crazy_but_lazy won on time"]

1. d4 {[%clk 0:03:00.9]} 1... Nf6 {[%clk 0:02:55.3]} 2. c4 {[%clk 0:03:01]} 2...
e6 {[%clk 0:02:55.6]} 3. Nf3 {[%clk 0:03:00.5]} 3... d5 {[%clk 0:02:55.9]} 4. g3
{[%clk 0:03:00.1]} 4... Be7 {[%clk 0:02:54.5]} 5. Bg2 {[%clk 0:03:00.5]} 5...
O-O {[%clk 0:02:55.2]} 6. O-O {[%clk 0:03:01.3]} 6... dxc4 {[%clk 0:02:55.9]} 7.
Ne5 {[%clk 0:03:00.6]} 7... Nc6 {[%clk 0:02:55.9]} 8. Bxc6 {[%clk 0:02:58.1]}
8... bxc6 {[%clk 0:02:56.8]} 9. Nxc6 {[%clk 0:02:58.8]} 9... Qe8 {[%clk
0:02:57]} 10. Nxe7+ {[%clk 0:02:59.5]} 10... Qxe7 {[%clk 0:02:57.9]} 11. Qc2
{[%clk 0:03:00.2]} 11... c5 {[%clk 0:02:56.6]} 12. Qxc4 {[%clk 0:02:59.7]} 12...
cxd4 {[%clk 0:02:57]} 13. Qxd4 {[%clk 0:03:00.6]} 13... e5 {[%clk 0:02:57.3]}
14. Qh4 {[%clk 0:03:01.1]} 14... Rb8 {[%clk 0:02:43.8]} 15. Nc3 {[%clk
0:02:47.7]} 15... Rb4 {[%clk 0:02:26.2]} 16. e4 {[%clk 0:02:46.7]} 16... Bb7
{[%clk 0:02:12.6]} 17. f3 {[%clk 0:02:20.2]} 17... Qc5+ {[%clk 0:01:57.3]} 18.
Rf2 {[%clk 0:02:07.8]} 18... Rd8 {[%clk 0:01:45.4]} 19. Bg5 {[%clk 0:02:02.9]}
19... Rxb2 {[%clk 0:01:39.7]} 20. g4 {[%clk 0:01:34.4]} 20... Rxf2 {[%clk
0:01:11.9]} 21. Qxf2 {[%clk 0:01:35.3]} 21... Qxc3 {[%clk 0:01:11.3]} 22. Rc1
{[%clk 0:01:35.9]} 22... Qd4 {[%clk 0:00:52.9]} 23. Be3 {[%clk 0:01:32.5]} 23...
Qa4 {[%clk 0:00:43.5]} 24. g5 {[%clk 0:01:13.6]} 24... Rd1+ {[%clk 0:00:39.3]}
25. Kg2 {[%clk 0:01:04.4]} 25... Rxc1 {[%clk 0:00:31.9]} 26. Bxc1 {[%clk
0:01:05.3]} 26... Nh5 {[%clk 0:00:14.4]} 27. Qb2 {[%clk 0:01:05.4]} 27... Qd7
{[%clk 0:00:05.8]} 28. Qxe5 {[%clk 0:01:03.8]} 28... g6 {[%clk 0:00:04.3]} 29.
Bb2 {[%clk 0:01:03.8]} 29... Kf8 {[%clk 0:00:03]} 30. Ba3+ {[%clk 0:00:28.3]}
30... Kg8 {[%clk 0:00:03.2]} 31. Bb2 {[%clk 0:00:29]} 31... Kf8 {[%clk
0:00:03.3]} 32. Qb8+ {[%clk 0:00:28.1]} 32... Bc8 {[%clk 0:00:02.7]} 33. Qe5
{[%clk 0:00:26.1]} 33... Qh3+ {[%clk 0:00:02.3]} 34. Kg1 {[%clk 0:00:25.9]}
34... Qe6 {[%clk 0:00:02.2]} 35. Ba3+ {[%clk 0:00:25.9]} 35... Ke8 {[%clk
0:00:01.9]} 36. Qc5 {[%clk 0:00:26]} 1-0